[Event "Czech Youth U16 Boys 2024"]
[Site "Kouty nad Desnou"]
[Date "2024.03.11"]
[Round "3.1"]
[White "Hozda, Max"]
[Black "Jasso, Matej"]
[Result "0-1"]
[ECO "D00"]
[WhiteElo "2032"]
[BlackElo "2060"]
[Annotator "RC"]
[PlyCount "56"]
[EventDate "2024.03.10"]
[EventType "swiss"]
[EventCountry "CZE"]
[SourceTitle "playchess.com"]
[Source "ChessBase"]
[SourceQuality "1"]
[TimeControl "40/5400+30:1800+30"]

1. d4 {[%emt 0:00:20]} d5 {[%emt 0:00:08]} 2. Nc3 {[%emt 0:01:31]} Nf6 {[%emt 0:01:26]} 3. Bf4 {[%emt 0:00:08]} c6 {[%emt 0:00:07]} 4. e3 {[%emt 0:00:25]} Bf5 {[%emt 0:00:07]} 5. Nf3 {[%emt 0:00:53]} e6 {[%emt 0:00:27]} 6. Ne5 {[%emt 0:06:19]} Bd6 {[%emt 0:05:27]} 7. Bd3 {[%emt 0:05:24]} Bxd3 {[%emt 0:00:30]} 8. cxd3 {[%emt 0:00:09]} Na6 {[%emt 0:05:35]} 9. O-O {[%emt 0:00:42]} O-O {[%emt 0:00:21]} 10. a3 {[%emt 0:00:54]} c5 {[%emt 0:22:27]} 11. dxc5 {[%emt 0:05:39]} Nxc5 {[%emt 0:06:18]} 12. b4 {[%emt 0:01:24]} Bxe5 {[%emt 0:01:21]} 13. Bxe5 {[%emt 0:00:16]} Ncd7 {[%emt 0:00:04]} 14. Bd6 {[%emt 0:14:28]} Re8 {[%emt 0:00:19]} 15. d4 {[%emt 0:00:19]} Nb6 {[%emt 0:06:44]} 16. Bg3 {[%emt 0:03:08]} Ne4 {[%emt 0:13:08]} 17. Nxe4 {[%emt 0:04:19]} dxe4 {[%emt 0:00:09]} 18. f3 {[%emt 0:03:52]} Qd5 {[%emt 0:02:13]} 19. Rc1 {[%emt 0:11:28]} exf3 {[%emt 0:07:37]} 20. Rc5 {[%emt 0:12:20]} fxg2 {[%emt 0:02:21]} 21. Rf4 {[%emt 0:05:36]} Qd7 {[%emt 0:02:35]} 22. Qh5 {[%emt 0:01:53]} g6 {[%emt 0:05:56]} 23. Rg4 {[%emt 0:17:44]} Nd5 {[%emt 0:07:12]} 24. Be5 {[%emt 0:01:08]} f6 {[%emt 0:01:26]} 25. e4 {[%emt 0:01:22]} fxe5 {[%emt 0:00:37]} 26. Qxe5 {[%emt 0:00:59]} Qf7 {[%emt 0:00:16]} 27. Rxg2 {[%emt 0:00:28]} Ne3 {[%emt 0:00:20]} 28. Rf2 {[%emt 0:00:32]} Qxf2+ {[%emt 0:00:07]} 0-1

[Event "Czech Youth U16 Boys 2024"]
[Site "Kouty nad Desnou"]
[Date "2024.03.11"]
[Round "3.2"]
[White "Davidek, Zdenek"]
[Black "Hladky, Tadeas"]
[Result "1/2-1/2"]
[ECO "D15"]
[WhiteElo "2135"]
[BlackElo "2056"]
[Annotator "RC"]
[PlyCount "48"]
[EventDate "2024.03.10"]
[EventType "swiss"]
[EventCountry "CZE"]
[SourceTitle "playchess.com"]
[Source "ChessBase"]
[SourceQuality "1"]
[TimeControl "40/5400+30:1800+30"]

1. d4 {[%emt 0:00:04]} d5 {[%emt 0:00:05]} 2. c4 {[%emt 0:00:07]} c6 {[%emt 0:00:03]} 3. Nf3 {[%emt 0:00:15]} Nf6 {[%emt 0:00:08]} 4. Nc3 {[%emt 0:00:04]} a6 {[%emt 0:00:19]} 5. e3 {[%emt 0:00:17]} Bf5 {[%emt 0:00:17]} 6. Bd3 {[%emt 0:00:09]} Bxd3 {[%emt 0:00:07]} 7. Qxd3 {[%emt 0:00:06]} e6 {[%emt 0:00:07]} 8. O-O {[%emt 0:00:15]} Nbd7 {[%emt 0:00:28]} 9. e4 {[%emt 0:00:34]} dxe4 {[%emt 0:00:23]} 10. Nxe4 {[%emt 0:00:09]} Nxe4 {[%emt 0:01:02]} 11. Qxe4 {[%emt 0:00:06]} Nf6 {[%emt 0:00:55]} 12. Qe2 {[%emt 0:00:10]} Be7 {[%emt 0:00:31]} 13. Bf4 {[%emt 0:00:58]} O-O {[%emt 0:00:54]} 14. Rad1 {[%emt 0:02:19]} Qa5 {[%emt 0:06:16]} 15. b3 {[%emt 0:14:58]} Qf5 {[%emt 0:02:21]} 16. Qe5 {[%emt 0:10:54]} g6 {[%emt 0:15:56]} 17. Qc7 {[%emt 0:35:44]} Rad8 {[%emt 0:08:36]} 18. Qxe7 {[%emt 0:05:02]} Rd7 {[%emt 0:01:46]} 19. Qc5 {[%emt 0:00:05]} Qxf4 {[%emt 0:00:19]} 20. Ne5 {[%emt 0:01:03]} Rc7 {[%emt 0:04:50]} 21. Qd6 {[%emt 0:01:40]} Rd7 {[%emt 0:01:29]} 22. Qc5 {[%emt 0:00:14]} Rc7 {[%emt 0:00:15]} 23. Qd6 {[%emt 0:04:11]} Rd7 {[%emt 0:00:18]} 24. Qc5 {[%emt 0:00:46]} Rc7 {[%emt 0:00:06]} 1/2-1/2

[Event "Czech Youth U16 Boys 2024"]
[Site "Kouty nad Desnou"]
[Date "2024.03.11"]
[Round "3.3"]
[White "Fizer, Marek"]
[Black "Setina, Vaclav"]
[Result "1-0"]
[ECO "B13"]
[WhiteElo "2058"]
[BlackElo "2024"]
[Annotator "RC"]
[PlyCount "85"]
[EventDate "2024.03.10"]
[EventType "swiss"]
[EventCountry "CZE"]
[SourceTitle "playchess.com"]
[Source "ChessBase"]
[SourceQuality "1"]
[TimeControl "40/5400+30:1800+30"]

1. e4 {[%emt 0:00:05]} c6 {[%emt 0:00:03]} 2. d4 {[%emt 0:00:21]} d5 {[%emt 0:00:05]} 3. exd5 {[%emt 0:00:19]} cxd5 {[%emt 0:00:08]} 4. Bd3 {[%emt 0:00:43]} Nc6 {[%emt 0:00:07]} 5. c3 {[%emt 0:00:22]} Qc7 {[%emt 0:02:37]} 6. h3 {[%emt 0:00:57]} g6 {[%emt 0:00:30]} 7. Nf3 {[%emt 0:01:10]} Nh6 {[%emt 0:01:41]} 8. O-O {[%emt 0:02:17]} Bf5 {[%emt 0:01:36]} 9. Be2 {[%emt 0:01:31]} Bg7 {[%emt 0:01:55]} 10. Be3 {[%emt 0:02:27]} Bxb1 {[%emt 0:02:12]} 11. Rxb1 {[%emt 0:02:53]} Nf5 {[%emt 0:00:15]} 12. Bc1 {[%emt 0:09:27]} O-O {[%emt 0:02:08]} 13. Re1 {[%emt 0:03:11]} Rab8 {[%emt 0:03:11]} 14. a4 {[%emt 0:10:06]} a6 {[%emt 0:03:34]} 15. Bd3 {[%emt 0:01:35]} b5 {[%emt 0:07:32]} 16. axb5 {[%emt 0:01:53]} axb5 {[%emt 0:00:06]} 17. b4 {[%emt 0:00:18]} e6 {[%emt 0:07:11]} 18. g4 {[%emt 0:02:56]} Nd6 {[%emt 0:03:11]} 19. Bf4 {[%emt 0:05:58]} Ne7 {[%emt 0:04:36]} 20. Qe2 {[%emt 0:06:26]} Nec8 {[%emt 0:06:12]} 21. Rb3 {[%emt 0:03:16]} Rb6 {[%emt 0:01:50]} 22. h4 {[%emt 0:12:22]} Rc6 {[%emt 0:13:41]} 23. Rc1 {[%emt 0:04:49]} Qb7 {[%emt 0:01:04]} 24. h5 {[%emt 0:02:52]} Nc4 {[%emt 0:01:19]} 25. Kg2 {[%emt 0:02:00]} Ne7 {[%emt 0:06:41]} 26. Rh1 {[%emt 0:03:22]} f6 {[%emt 0:02:51]} 27. hxg6 {[%emt 0:11:00]} Nxg6 {[%emt 0:01:38]} 28. Bg3 {[%emt 0:00:35]} e5 {[%emt 0:01:58]} 29. Bf5 {[%emt 0:00:58]} Nd6 {[%emt 0:05:34]} 30. Be6+ {[%emt 0:02:07]} Nf7 {[%emt 0:00:06]} 31. Bxd5 {[%emt 0:00:07]} Qd7 {[%emt 0:00:26]} 32. Qxb5 {[%emt 0:01:55]} Rd6 {[%emt 0:00:12]} 33. Qxd7 {[%emt 0:00:19]} Rxd7 {[%emt 0:00:01]} 34. Be6 {[%emt 0:00:32]} Rc7 {[%emt 0:00:50]} 35. dxe5 {[%emt 0:00:58]} fxe5 {[%emt 0:01:36]} 36. Ng5 {[%emt 0:00:17]} Ngh8 {[%emt 0:00:10]} 37. Bd5 {[%emt 0:01:03]} Rd8 {[%emt 0:00:26]} 38. Ne6 {[%emt 0:01:02]} Rxd5 {[%emt 0:00:36]} 39. Nxc7 {[%emt 0:00:07]} Rd3 {[%emt 0:00:24]} 40. b5 {[%emt 0:01:03]} Nd6 {[%emt 0:00:09]} 41. b6 {[%emt 0:34:16]} Nb7 {[%emt 0:30:04]} 42. Ne6 {[%emt 0:00:00]} Nf7 {[%emt 0:00:00]} 43. Ra1 {[%emt 0:00:00]} 1-0

[Event "Czech Youth U16 Boys 2024"]
[Site "Kouty nad Desnou"]
[Date "2024.03.11"]
[Round "3.4"]
[White "Juhanak, Daniel"]
[Black "Mikolas, Petr"]
[Result "1-0"]
[ECO "E04"]
[WhiteElo "2005"]
[BlackElo "1957"]
[Annotator "RC"]
[PlyCount "65"]
[EventDate "2024.03.10"]
[EventType "swiss"]
[EventCountry "CZE"]
[SourceTitle "playchess.com"]
[Source "ChessBase"]
[SourceQuality "1"]
[TimeControl "40/5400+30:1800+30"]

1. d4 {[%emt 0:00:04]} d5 {[%emt 0:00:18]} 2. c4 {[%emt 0:00:23]} e6 {[%emt 0:00:09]} 3. Nf3 {[%emt 0:00:25]} Nf6 {[%emt 0:00:12]} 4. g3 {[%emt 0:00:25]} dxc4 {[%emt 0:00:35]} 5. Bg2 {[%emt 0:01:19]} a6 {[%emt 0:00:07]} 6. O-O {[%emt 0:01:39]} Nbd7 {[%emt 0:10:29]} 7. a4 {[%emt 0:07:37]} Rb8 {[%emt 0:06:07]} 8. a5 {[%emt 0:08:56]} Bd6 {[%emt 0:16:52]} 9. Nbd2 {[%emt 0:03:50]} O-O {[%emt 0:00:20]} 10. Nxc4 {[%emt 0:00:44]} Qe7 {[%emt 0:09:14]} 11. b3 {[%emt 0:04:55]} Rd8 {[%emt 0:08:15]} 12. Qc2 {[%emt 0:09:54]} b5 {[%emt 0:08:14]} 13. axb6 {[%emt 0:05:31]} Nxb6 {[%emt 0:00:07]} 14. Nfe5 {[%emt 0:08:05]} Bd7 {[%emt 0:06:31]} 15. Rxa6 {[%emt 0:05:51]} Nfd5 {[%emt 0:01:03]} 16. Bd2 {[%emt 0:08:52]} Bb5 {[%emt 0:07:14]} 17. Ra5 {[%emt 0:03:24]} Qe8 {[%emt 0:01:29]} 18. Nd3 {[%emt 0:06:22]} Bf8 {[%emt 0:05:38]} 19. Rfa1 Ra8 {[%emt 0:02:11]} 20. h3 {[%emt 0:08:18]} h6 {[%emt 0:01:11]} 21. Kh2 {[%emt 0:01:26]} Rxa5 {[%emt 0:06:49]} 22. Rxa5 {[%emt 0:00:20]} Ra8 {[%emt 0:00:41]} 23. e4 {[%emt 0:01:02]} Ne7 {[%emt 0:01:11]} 24. Nde5 {[%emt 0:02:07]} Nc6 {[%emt 0:00:49]} 25. Nxc6 {[%emt 0:03:26]} Bxc6 {[%emt 0:00:01]} 26. Ne5 {[%emt 0:00:45]} Rxa5 {[%emt 0:04:14]} 27. Bxa5 {[%emt 0:00:08]} Ba8 {[%emt 0:00:51]} 28. Qxc7 {[%emt 0:00:16]} Nc8 {[%emt 0:00:04]} 29. Nxf7 {[%emt 0:02:14]} Qxf7 {[%emt 0:01:03]} 30. Qxc8 {[%emt 0:00:11]} Bb7 {[%emt 0:01:14]} 31. Qc7 {[%emt 0:00:51]} g6 {[%emt 0:00:25]} 32. Qxf7+ {[%emt 0:02:14]} Kxf7 {[%emt 0:00:01]} 33. e5 {[%emt 0:00:23]} 1-0

[Event "Czech Youth U16 Boys 2024"]
[Site "Kouty nad Desnou"]
[Date "2024.03.11"]
[Round "3.5"]
[White "Buchta, Bartolomej"]
[Black "Prazak, Daniel"]
[Result "0-1"]
[ECO "C02"]
[WhiteElo "1913"]
[BlackElo "2223"]
[Annotator "RC"]
[PlyCount "64"]
[EventDate "2024.03.10"]
[EventType "swiss"]
[EventCountry "CZE"]
[SourceTitle "playchess.com"]
[Source "ChessBase"]
[SourceQuality "1"]
[TimeControl "40/5400+30:1800+30"]

1. e4 {[%emt 0:00:03]} e6 {[%emt 0:00:41]} 2. d4 {[%emt 0:00:14]} d5 {[%emt 0:00:10]} 3. e5 {[%emt 0:00:05]} c5 {[%emt 0:00:35]} 4. c3 {[%emt 0:00:06]} Nc6 {[%emt 0:00:37]} 5. Nf3 {[%emt 0:00:06]} Qb6 {[%emt 0:00:50]} 6. Be2 {[%emt 0:00:11]} cxd4 {[%emt 0:00:09]} 7. cxd4 {[%emt 0:00:06]} Nh6 {[%emt 0:00:36]} 8. Na3 {[%emt 0:00:49]} Bxa3 {[%emt 0:01:11]} 9. bxa3 {[%emt 0:00:12]} Nf5 {[%emt 0:00:07]} 10. Be3 {[%emt 0:01:00]} Nxe3 {[%emt 0:00:11]} 11. fxe3 {[%emt 0:00:06]} Qa5+ {[%emt 0:00:09]} 12. Qd2 {[%emt 0:01:13]} Qxa3 {[%emt 0:00:09]} 13. O-O {[%emt 0:00:06]} O-O {[%emt 0:00:13]} 14. Rab1 {[%emt 0:02:05]} b6 {[%emt 0:03:08]} 15. Rb3 {[%emt 0:10:01]} Qe7 {[%emt 0:02:16]} 16. Bd3 {[%emt 0:04:45]} Bb7 {[%emt 0:03:13]} 17. Qc2 {[%emt 0:18:15]} h6 {[%emt 0:02:53]} 18. Qb1 {[%emt 0:02:35]} Rac8 {[%emt 0:02:54]} 19. Rc1 {[%emt 0:01:12]} Rc7 {[%emt 0:05:35]} 20. Rbc3 {[%emt 0:05:39]} Rfc8 {[%emt 0:02:17]} 21. Qb5 {[%emt 0:14:57]} g6 {[%emt 0:03:51]} 22. Qb2 {[%emt 0:04:12]} Na5 {[%emt 0:03:56]} 23. Nd2 {[%emt 0:00:22]} Rxc3 {[%emt 0:00:47]} 24. Rxc3 {[%emt 0:00:05]} Rxc3 {[%emt 0:01:40]} 25. Qxc3 {[%emt 0:00:05]} Qg5 {[%emt 0:01:45]} 26. Be2 {[%emt 0:02:57]} Nc4 {[%emt 0:03:31]} 27. Nf1 {[%emt 0:08:48]} b5 {[%emt 0:03:55]} 28. Kf2 {[%emt 0:01:13]} a5 {[%emt 0:04:37]} 29. Ng3 {[%emt 0:03:48]} b4 {[%emt 0:04:16]} 30. Qc1 {[%emt 0:01:06]} h5 {[%emt 0:02:21]} 31. Bf1 {[%emt 0:02:31]} h4 {[%emt 0:03:40]} 32. Ne4 {[%emt 0:00:38]} Qf5+ {[%emt 0:00:38]} 0-1

[Event "Czech Youth U16 Boys 2024"]
[Site "Kouty nad Desnou"]
[Date "2024.03.11"]
[Round "3.6"]
[White "Zelba, Lukas"]
[Black "Andrle, Filip"]
[Result "0-1"]
[ECO "D53"]
[WhiteElo "1979"]
[BlackElo "1943"]
[Annotator "RC"]
[PlyCount "84"]
[EventDate "2024.03.10"]
[EventType "swiss"]
[EventCountry "CZE"]
[SourceTitle "playchess.com"]
[Source "ChessBase"]
[SourceQuality "1"]
[TimeControl "40/5400+30:1800+30"]

1. d4 {[%emt 0:00:13]} Nf6 {[%emt 0:00:20]} 2. c4 {[%emt 0:00:12]} e6 {[%emt 0:01:22]} 3. Nc3 {[%emt 0:00:07]} d5 {[%emt 0:04:20]} 4. Bg5 {[%emt 0:00:16]} Be7 {[%emt 0:02:21]} 5. cxd5 {[%emt 0:00:47]} exd5 {[%emt 0:00:26]} 6. e3 {[%emt 0:00:21]} O-O {[%emt 0:03:23]} 7. Bd3 {[%emt 0:00:09]} c6 {[%emt 0:02:10]} 8. Qc2 {[%emt 0:00:12]} Nbd7 {[%emt 0:02:26]} 9. Nge2 {[%emt 0:01:59]} Re8 {[%emt 0:05:25]} 10. O-O {[%emt 0:01:29]} Nf8 {[%emt 0:02:05]} 11. Rae1 {[%emt 0:03:53]} h6 {[%emt 0:13:26]} 12. Bh4 {[%emt 0:00:06]} Ne4 {[%emt 0:01:16]} 13. Bxe7 {[%emt 0:00:24]} Qxe7 {[%emt 0:00:08]} 14. f3 {[%emt 0:00:13]} Nxc3 {[%emt 0:02:13]} 15. Nxc3 {[%emt 0:00:07]} Qf6 {[%emt 0:06:59]} 16. b4 {[%emt 0:05:15]} Bd7 {[%emt 0:09:18]} 17. Kh1 {[%emt 0:07:54]} Qd6 {[%emt 0:05:42]} 18. Na4 {[%emt 0:04:19]} Qxb4 {[%emt 0:09:05]} 19. Nc5 {[%emt 0:03:10]} b6 {[%emt 0:04:24]} 20. Rb1 {[%emt 0:23:08]} Qa5 {[%emt 0:04:00]} 21. Nb3 {[%emt 0:01:34]} Qa4 {[%emt 0:02:16]} 22. e4 {[%emt 0:01:21]} Ne6 {[%emt 0:02:32]} 23. Qf2 {[%emt 0:02:39]} Rac8 {[%emt 0:04:07]} 24. Bc2 {[%emt 0:03:10]} Qa6 {[%emt 0:00:47]} 25. Rbd1 {[%emt 0:02:16]} Qc4 {[%emt 0:05:17]} 26. f4 {[%emt 0:18:12]} dxe4 {[%emt 0:01:45]} 27. Bxe4 {[%emt 0:00:53]} Nf8 {[%emt 0:01:05]} 28. Bf3 {[%emt 0:02:21]} Bf5 {[%emt 0:02:04]} 29. g4 {[%emt 0:02:08]} Be6 {[%emt 0:01:31]} 30. Rc1 {[%emt 0:00:59]} Qb5 {[%emt 0:00:54]} 31. Rc3 {[%emt 0:00:39]} Bd5 {[%emt 0:00:25]} 32. Nc1 {[%emt 0:03:10]} Ne6 {[%emt 0:01:42]} 33. Kg1 {[%emt 0:01:54]} Bxf3 {[%emt 0:00:25]} 34. Rxf3 {[%emt 0:00:11]} Rcd8 {[%emt 0:00:32]} 35. Re3 {[%emt 0:00:54]} Qd5 {[%emt 0:00:37]} 36. Nb3 {[%emt 0:00:55]} a5 {[%emt 0:00:22]} 37. Re5 {[%emt 0:01:14]} Qd6 {[%emt 0:01:02]} 38. f5 {[%emt 0:01:47]} Ng5 {[%emt 0:00:30]} 39. Qg3 {[%emt 0:00:03]} Rxe5 {[%emt 0:00:39]} 40. dxe5 {[%emt 0:00:25]} Qd5 {[%emt 0:00:24]} 41. h4 {[%emt 0:30:37]} Ne4 {[%emt 0:30:36]} 42. Qf4 {[%emt 0:00:55]} a4 {[%emt 0:00:00]} 0-1

[Event "Czech Youth U16 Boys 2024"]
[Site "Kouty nad Desnou"]
[Date "2024.03.11"]
[Round "3.7"]
[White "Pressler, Tobias"]
[Black "Zrubek, Dan"]
[Result "0-1"]
[ECO "A02"]
[WhiteElo "1954"]
[BlackElo "1882"]
[Annotator "RC"]
[PlyCount "90"]
[EventDate "2024.03.10"]
[EventType "swiss"]
[EventCountry "CZE"]
[SourceTitle "playchess.com"]
[Source "ChessBase"]
[SourceQuality "1"]
[TimeControl "40/5400+30:1800+30"]

1. f4 {[%emt 0:01:13]} g6 {[%emt 0:05:11]} 2. Nf3 {[%emt 0:01:40]} Bg7 {[%emt 0:01:37]} 3. g3 {[%emt 0:03:33]} Nf6 {[%emt 0:02:41]} 4. Bg2 {[%emt 0:00:07]} O-O {[%emt 0:04:58]} 5. O-O {[%emt 0:00:49]} d5 {[%emt 0:04:26]} 6. d3 {[%emt 0:01:53]} c5 {[%emt 0:06:48]} 7. Nbd2 {[%emt 0:00:48]} Ng4 {[%emt 0:06:52]} 8. Nb3 {[%emt 0:15:31]} Qb6 {[%emt 0:03:45]} 9. d4 {[%emt 0:03:13]} cxd4 {[%emt 0:03:52]} 10. Nbxd4 {[%emt 0:03:53]} Nc6 {[%emt 0:02:39]} 11. c3 {[%emt 0:00:31]} e6 {[%emt 0:10:35]} 12. Kh1 {[%emt 0:07:42]} a6 {[%emt 0:04:18]} 13. Rb1 {[%emt 0:15:10]} Qc7 {[%emt 0:03:26]} 14. h3 {[%emt 0:13:17]} Nf6 {[%emt 0:02:41]} 15. Be3 {[%emt 0:01:50]} Na5 {[%emt 0:08:18]} 16. Bg1 {[%emt 0:04:12]} Ne4 {[%emt 0:02:08]} 17. Bh2 {[%emt 0:00:23]} Nc4 {[%emt 0:02:55]} 18. Qc1 {[%emt 0:01:48]} h5 {[%emt 0:01:42]} 19. Nc2 {[%emt 0:09:10]} Qb6 {[%emt 0:05:32]} 20. Ncd4 {[%emt 0:00:58]} Qc7 {[%emt 0:02:49]} 21. Ra1 {[%emt 0:01:26]} Bd7 {[%emt 0:03:35]} 22. Nh4 {[%emt 0:04:10]} e5 {[%emt 0:01:41]} 23. fxe5 {[%emt 0:02:56]} Bxe5 {[%emt 0:00:43]} 24. Bxe4 {[%emt 0:01:53]} dxe4 {[%emt 0:00:12]} 25. Kg2 {[%emt 0:00:09]} Qc8 {[%emt 0:01:50]} 26. g4 {[%emt 0:02:50]} Bxg4 {[%emt 0:01:51]} 27. Bxe5 {[%emt 0:00:40]} Bxh3+ {[%emt 0:01:45]} 28. Kh2 {[%emt 0:00:22]} Nxe5 {[%emt 0:03:36]} 29. Rg1 {[%emt 0:00:57]} Bg4 {[%emt 0:00:49]} 30. Qf4 {[%emt 0:01:00]} Qb8 {[%emt 0:01:34]} 31. Kh1 {[%emt 0:00:10]} Qd8 {[%emt 0:00:31]} 32. Nhf5 {[%emt 0:01:27]} gxf5 {[%emt 0:00:36]} 33. Qxe5 {[%emt 0:00:31]} Qh4+ {[%emt 0:00:25]} 34. Kg2 {[%emt 0:00:15]} Qg5 {[%emt 0:00:34]} 35. Kf2 {[%emt 0:00:25]} Kh7 {[%emt 0:00:29]} 36. Raf1 {[%emt 0:00:46]} Qh4+ {[%emt 0:00:30]} 37. Rg3 {[%emt 0:00:04]} Rae8 {[%emt 0:00:27]} 38. Qf4 {[%emt 0:00:07]} e3+ {[%emt 0:00:32]} 39. Ke1 {[%emt 0:00:20]} Re4 {[%emt 0:00:27]} 40. Qd6 {[%emt 0:00:20]} Rd8 {[%emt 0:00:33]} 41. Qc7 {[%emt 0:30:30]} Qf6 {[%emt 0:08:16]} 42. Qxb7 {[%emt 0:00:00]} Rde8 {[%emt 0:05:09]} 43. Kd1 {[%emt 0:00:00]} f4 {[%emt 0:02:40]} 44. Kc1 {[%emt 0:00:00]} Rxd4 {[%emt 0:06:05]} 45. Rxg4 {[%emt 0:00:00]} hxg4 {[%emt 0:00:22]} 0-1

[Event "Czech Youth U16 Boys 2024"]
[Site "Kouty nad Desnou"]
[Date "2024.03.11"]
[Round "3.8"]
[White "Juracak, David"]
[Black "Vysinsky, Otakar"]
[Result "1-0"]
[ECO "C55"]
[WhiteElo "1944"]
[BlackElo "1882"]
[Annotator "ChessBase"]
[PlyCount "65"]
[EventDate "2024.03.10"]
[EventType "swiss"]
[EventCountry "CZE"]
[SourceTitle "playchess.com"]
[Source "ChessBase"]
[SourceQuality "1"]
[TimeControl "40/5400+30:1800+30"]

1. e4 {[%emt 0:02:19]} e5 {[%emt 0:02:24]} 2. Nf3 {[%emt 0:00:13]} Nc6 {[%emt 0:00:09]} 3. Bc4 {[%emt 0:00:48]} Nf6 {[%emt 0:01:05]} 4. d3 {[%emt 0:01:03]} Be7 {[%emt 0:01:26]} 5. c3 {[%emt 0:07:52]} O-O {[%emt 0:01:02]} 6. O-O {[%emt 0:07:43]} d5 {[%emt 0:00:43]} 7. exd5 {[%emt 0:02:59]} Nxd5 {[%emt 0:00:08]} 8. h3 {[%emt 0:00:36]} Bf5 {[%emt 0:04:46]} 9. Re1 {[%emt 0:01:54]} Bf6 {[%emt 0:08:34]} 10. Be3 {[%emt 0:05:57]} Nxe3 {[%emt 0:06:27]} 11. fxe3 {[%emt 0:02:40]} e4 {[%emt 0:04:17]} 12. Nd4 {[%emt 0:00:32]} Nxd4 {[%emt 0:00:41]} 13. cxd4 {[%emt 0:02:53]} exd3 {[%emt 0:08:12]} 14. Nc3 {[%emt 0:06:15]} c5 {[%emt 0:04:41]} 15. Nd5 {[%emt 0:00:49]} cxd4 {[%emt 0:16:48]} 16. e4 {[%emt 0:00:41]} Be6 {[%emt 0:00:51]} 17. Qxd3 {[%emt 0:00:23]} Be5 {[%emt 0:06:49]} 18. Rf1 {[%emt 0:03:27]} Qg5 {[%emt 0:02:34]} 19. Rf3 {[%emt 0:01:58]} Rac8 {[%emt 0:01:54]} 20. Raf1 {[%emt 0:01:45]} Bxd5 {[%emt 0:07:05]} 21. Bxd5 {[%emt 0:00:18]} Rc7 {[%emt 0:00:09]} 22. Qb3 {[%emt 0:02:27]} Bf6 {[%emt 0:03:18]} 23. Qd3 {[%emt 0:06:02]} b6 {[%emt 0:01:41]} 24. h4 {[%emt 0:03:49]} Qh6 {[%emt 0:01:35]} 25. Rxf6 {[%emt 0:04:23]} gxf6 {[%emt 0:02:39]} 26. Qg3+ {[%emt 0:00:13]} Kh8 {[%emt 0:00:07]} 27. Qxc7 {[%emt 0:00:14]} Qe3+ {[%emt 0:00:43]} 28. Kh1 {[%emt 0:00:08]} Qe2 {[%emt 0:01:59]} 29. Qf4 {[%emt 0:00:29]} Rg8 {[%emt 0:00:30]} 30. Qxf6+ {[%emt 0:00:12]} Rg7 {[%emt 0:00:05]} 31. e5 {[%emt 0:00:08]} d3 {[%emt 0:00:45]} 32. e6 {[%emt 0:04:09]} fxe6 {[%emt 0:01:39]} 33. Rc1 {[%emt 0:00:21]} 1-0

[Event "Czech Youth U16 Boys 2024"]
[Site "Kouty nad Desnou"]
[Date "2024.03.11"]
[Round "3.9"]
[White "Dvorak, Jan"]
[Black "Buchtova, Viktorie"]
[Result "0-1"]
[ECO "B38"]
[WhiteElo "2154"]
[BlackElo "1874"]
[Annotator "RC"]
[PlyCount "90"]
[EventDate "2024.03.10"]
[EventType "swiss"]
[EventCountry "CZE"]
[SourceTitle "playchess.com"]
[Source "ChessBase"]
[SourceQuality "1"]
[TimeControl "40/5400+30:1800+30"]

1. e4 {[%emt 0:00:02]} c5 {[%emt 0:00:03]} 2. Nf3 {[%emt 0:00:09]} Nc6 {[%emt 0:00:15]} 3. d4 {[%emt 0:00:26]} cxd4 {[%emt 0:00:05]} 4. Nxd4 {[%emt 0:00:06]} g6 {[%emt 0:00:04]} 5. c4 {[%emt 0:00:53]} Bg7 {[%emt 0:00:26]} 6. Be3 {[%emt 0:00:31]} Nf6 {[%emt 0:01:55]} 7. Nc3 {[%emt 0:00:06]} d6 {[%emt 0:00:21]} 8. Be2 {[%emt 0:00:48]} O-O {[%emt 0:01:20]} 9. O-O {[%emt 0:00:10]} Bd7 {[%emt 0:02:28]} 10. f3 {[%emt 0:02:15]} Nxd4 {[%emt 0:03:04]} 11. Bxd4 {[%emt 0:00:05]} Bc6 {[%emt 0:04:38]} 12. Qd2 {[%emt 0:01:38]} Nd7 {[%emt 0:01:48]} 13. Be3 {[%emt 0:01:05]} Rc8 {[%emt 0:15:06]} 14. Rac1 {[%emt 0:01:17]} Nb6 {[%emt 0:08:32]} 15. b3 {[%emt 0:04:24]} Bd7 {[%emt 0:15:14]} 16. Kh1 {[%emt 0:02:28]} Be6 {[%emt 0:05:11]} 17. Rfd1 {[%emt 0:08:20]} Nd7 {[%emt 0:02:14]} 18. Bd3 {[%emt 0:03:57]} Nc5 {[%emt 0:03:05]} 19. Ne2 {[%emt 0:02:36]} Nxd3 {[%emt 0:06:47]} 20. Qxd3 {[%emt 0:00:14]} Qa5 {[%emt 0:00:34]} 21. Rc2 {[%emt 0:03:00]} b5 {[%emt 0:07:23]} 22. c5 {[%emt 0:10:02]} dxc5 {[%emt 0:01:40]} 23. Rxc5 {[%emt 0:00:32]} Qxa2 {[%emt 0:02:44]} 24. Rxc8 {[%emt 0:01:02]} Rxc8 {[%emt 0:08:00]} 25. Nc1 {[%emt 0:36:44]} Qc2 {[%emt 0:03:28]} 26. Qxc2 {[%emt 0:02:04]} Rxc2 {[%emt 0:00:01]} 27. Rd8+ {[%emt 0:00:08]} Bf8 {[%emt 0:00:07]} 28. Bh6 {[%emt 0:00:16]} Rc8 {[%emt 0:00:10]} 29. Rxc8 {[%emt 0:02:52]} Bxc8 {[%emt 0:00:03]} 30. Be3 {[%emt 0:00:28]} a5 {[%emt 0:03:19]} 31. Nd3 {[%emt 0:06:19]} a4 {[%emt 0:00:53]} 32. b4 {[%emt 0:01:48]} Bg7 {[%emt 0:03:45]} 33. e5 {[%emt 0:01:32]} Bf5 {[%emt 0:00:40]} 34. Nc5 {[%emt 0:02:03]} Bxe5 {[%emt 0:00:19]} 35. Bc1 {[%emt 0:00:26]} Bd4 {[%emt 0:01:06]} 36. Ba3 {[%emt 0:00:25]} Kf8 {[%emt 0:01:04]} 37. g4 {[%emt 0:00:13]} Bc2 {[%emt 0:00:24]} 38. Kg2 {[%emt 0:00:22]} Ke8 {[%emt 0:00:19]} 39. Kf1 {[%emt 0:00:37]} Bd1 40. Kg2 {[%emt 0:02:25]} Bc2 {[%emt 0:00:31]} 41. h3 {[%emt 0:31:52]} Kd8 {[%emt 0:17:22]} 42. Kf1 {[%emt 0:00:00]} Bd1 {[%emt 0:02:18]} 43. f4 {[%emt 0:00:00]} Be3 {[%emt 0:01:13]} 44. Nd3 {[%emt 0:00:00]} Bf3 {[%emt 0:02:21]} 45. Ne5 {[%emt 0:00:00]} Bd5 {[%emt 0:00:12]} 0-1